[Event "Wuerttemberg Rapid Teams 2024"]
[Site "B?blingen, Germany"]
[Date "2024.04.13"]
[Round "8.11"]
[White "Degenhard, Simon"]
[Black "Schraegle, Thorsten"]
[Result "1-0"]
[ECO "D00"]
[WhiteElo "2204"]
[BlackElo "1918"]
[Annotator "RC"]
[PlyCount "87"]
[EventDate "2024.04.13"]
[EventType "team-tourn"]
[SourceTitle "playchess.com"]
[Source "ChessBase"]
[SourceQuality "1"]
[TimeControl "900+5"]

1. d4 {[%emt 0:00:45]} Nf6 {[%emt 0:00:01]} 2. Nc3 {[%emt 0:00:02]} d5 {[%emt 0:00:05]} 3. Bf4 {[%emt 0:00:01]} a6 {[%emt 0:00:05]} 4. e3 {[%emt 0:00:01]} e6 {[%emt 0:00:02]} 5. Nf3 {[%emt 0:00:03]} c5 {[%emt 0:00:03]} 6. Bd3 {[%emt 0:01:21]} b5 {[%emt 0:00:06]} 7. dxc5 {[%emt 0:00:21]} Bxc5 {[%emt 0:00:09]} 8. e4 {[%emt 0:00:02]} Bb7 {[%emt 0:00:57]} 9. exd5 {[%emt 0:00:33]} Nxd5 {[%emt 0:00:10]} 10. Nxd5 {[%emt 0:00:02]} Qxd5 {[%emt 0:00:09]} 11. O-O {[%emt 0:00:09]} Nc6 {[%emt 0:00:30]} 12. Re1 {[%emt 0:01:30]} O-O {[%emt 0:00:26]} 13. Bxh7+ {[%emt 0:01:45]} Kxh7 {[%emt 0:00:05]} 14. Ng5+ {[%emt 0:00:01]} Kg8 {[%emt 0:00:18]} 15. Qh5 {[%emt 0:00:17]} Qf5 {[%emt 0:00:05]} 16. g4 {[%emt 0:00:08]} Bxf2+ {[%emt 0:07:03]} 17. Kf1 {[%emt 0:00:37]} Qg6 {[%emt 0:00:21]} 18. Kxf2 {[%emt 0:00:47]} e5 {[%emt 0:00:52]} 19. Bxe5 {[%emt 0:00:42]} Nxe5 {[%emt 0:00:14]} 20. Rxe5 {[%emt 0:00:07]} Qxc2+ {[%emt 0:00:17]} 21. Re2 {[%emt 0:00:02]} Qg6 {[%emt 0:00:57]} 22. Qxg6 {[%emt 0:00:08]} fxg6+ {[%emt 0:00:01]} 23. Kg3 {[%emt 0:00:07]} Rad8 {[%emt 0:00:14]} 24. Rae1 {[%emt 0:00:37]} Rd3+ {[%emt 0:00:09]} 25. Re3 {[%emt 0:00:01]} Rd5 {[%emt 0:00:31]} 26. Re7 {[%emt 0:01:07]} Bc8 {[%emt 0:00:42]} 27. R1e5 {[%emt 0:01:34]} Rd4 {[%emt 0:00:08]} 28. Re4 {[%emt 0:00:14]} Rd2 {[%emt 0:00:15]} 29. Re2 {[%emt 0:00:17]} Rxe2 {[%emt 0:00:29]} 30. Rxe2 {[%emt 0:00:01]} Rd8 {[%emt 0:00:04]} 31. h3 {[%emt 0:00:13]} Bb7 {[%emt 0:00:38]} 32. Re7 {[%emt 0:00:50]} Bd5 {[%emt 0:00:01]} 33. Ra7 {[%emt 0:00:01]} Bxa2 {[%emt 0:00:18]} 34. Rxa6 {[%emt 0:00:01]} Bf7 {[%emt 0:00:11]} 35. Rb6 {[%emt 0:00:12]} Bc4 {[%emt 0:00:16]} 36. Rxg6 {[%emt 0:00:19]} Rd3+ {[%emt 0:00:01]} 37. Kf4 {[%emt 0:00:01]} Rb3 {[%emt 0:00:06]} 38. Rb6 {[%emt 0:00:02]} Kf8 {[%emt 0:00:08]} 39. Ne4 {[%emt 0:00:58]} Rxb2 {[%emt 0:00:15]} 40. Nd6 {[%emt 0:00:00]} Rd2 {[%emt 0:00:28]} 41. Nxb5 {[%emt 0:01:08]} Rb2 {[%emt 0:00:24]} 42. Rb8+ {[%emt 0:00:01]} Ke7 {[%emt 0:00:01]} 43. Rb7+ {[%emt 0:00:01]} Kf6 {[%emt 0:00:18]} 44. Nd6 {[%emt 0:00:04]} 1-0

[Event "Wuerttemberg Rapid Teams 2024"]
[Site "B?blingen, Germany"]
[Date "2024.04.13"]
[Round "8.12"]
[White "Tschlatscher, Thomas"]
[Black "Guenter, Alexander"]
[Result "1-0"]
[ECO "A01"]
[WhiteElo "2217"]
[BlackElo "1997"]
[Annotator "RC"]
[PlyCount "103"]
[EventDate "2024.04.13"]
[EventType "team-tourn"]
[SourceTitle "playchess.com"]
[Source "ChessBase"]
[SourceQuality "1"]
[TimeControl "900+5"]

1. b3 {[%emt 0:00:02]} Nf6 {[%emt 0:00:02]} 2. Bb2 {[%emt 0:00:02]} g6 {[%emt 0:00:01]} 3. Bxf6 {[%emt 0:00:02]} exf6 {[%emt 0:00:01]} 4. c4 {[%emt 0:00:02]} Bg7 {[%emt 0:00:03]} 5. Nc3 {[%emt 0:00:02]} f5 {[%emt 0:00:02]} 6. g3 {[%emt 0:00:01]} c6 {[%emt 0:00:01]} 7. Bg2 {[%emt 0:00:02]} O-O {[%emt 0:00:02]} 8. e3 {[%emt 0:00:02]} Na6 {[%emt 0:00:09]} 9. Nge2 {[%emt 0:00:02]} Nc7 {[%emt 0:00:08]} 10. d4 {[%emt 0:00:09]} d5 {[%emt 0:00:03]} 11. cxd5 {[%emt 0:00:03]} Nxd5 {[%emt 0:00:06]} 12. Nxd5 {[%emt 0:00:02]} cxd5 {[%emt 0:00:01]} 13. O-O {[%emt 0:00:03]} Be6 {[%emt 0:00:05]} 14. Qd2 {[%emt 0:00:32]} Rc8 {[%emt 0:00:03]} 15. Rac1 {[%emt 0:00:09]} Qb6 {[%emt 0:00:33]} 16. Nf4 {[%emt 0:00:06]} Qd6 {[%emt 0:00:08]} 17. h4 {[%emt 0:00:19]} h6 {[%emt 0:00:05]} 18. Rxc8 {[%emt 0:00:03]} Rxc8 {[%emt 0:00:02]} 19. Rc1 {[%emt 0:00:02]} g5 {[%emt 0:00:29]} 20. Rxc8+ {[%emt 0:00:09]} Bxc8 {[%emt 0:00:03]} 21. hxg5 {[%emt 0:00:05]} hxg5 {[%emt 0:00:04]} 22. Nxd5 {[%emt 0:00:04]} b6 {[%emt 0:00:09]} 23. Qc2 {[%emt 0:00:54]} Be6 {[%emt 0:00:17]} 24. Qc7 {[%emt 0:00:57]} Qxc7 {[%emt 0:00:05]} 25. Nxc7 {[%emt 0:00:02]} Bd7 {[%emt 0:00:02]} 26. f4 {[%emt 0:02:26]} g4 {[%emt 0:00:10]} 27. Nd5 {[%emt 0:00:51]} Kf8 {[%emt 0:00:06]} 28. Kf2 {[%emt 0:00:10]} Ke8 {[%emt 0:00:07]} 29. Nc3 {[%emt 0:00:30]} Bf8 {[%emt 0:00:10]} 30. Ke2 {[%emt 0:00:03]} Bb4 {[%emt 0:00:15]} 31. Nd5 {[%emt 0:00:50]} Bd6 {[%emt 0:00:17]} 32. Nc3 {[%emt 0:01:04]} Bb4 {[%emt 0:00:08]} 33. Kd3 {[%emt 0:00:04]} Kd8 {[%emt 0:00:20]} 34. Bd5 {[%emt 0:00:10]} Be6 {[%emt 0:00:13]} 35. Bc4 {[%emt 0:00:28]} a5 {[%emt 0:00:27]} 36. Ne2 {[%emt 0:01:11]} Be1 {[%emt 0:00:17]} 37. e4 {[%emt 0:00:08]} fxe4+ {[%emt 0:00:13]} 38. Kxe4 {[%emt 0:00:03]} Ke7 {[%emt 0:00:27]} 39. Ke5 {[%emt 0:01:11]} Bc8 {[%emt 0:00:21]} 40. f5 {[%emt 0:00:07]} Bb7 {[%emt 0:00:14]} 41. f6+ {[%emt 0:00:13]} Kf8 {[%emt 0:00:06]} 42. d5 {[%emt 0:00:02]} Bf2 {[%emt 0:00:15]} 43. Bb5 {[%emt 0:00:03]} Kg8 {[%emt 0:00:19]} 44. d6 {[%emt 0:00:05]} Bc8 {[%emt 0:01:17]} 45. d7 {[%emt 0:00:02]} Bxd7 {[%emt 0:00:01]} 46. Bxd7 {[%emt 0:00:02]} Kh7 {[%emt 0:00:06]} 47. Bxg4 {[%emt 0:00:03]} Kg6 {[%emt 0:00:02]} 48. Bf3 {[%emt 0:00:18]} b5 {[%emt 0:00:02]} 49. Be4+ {[%emt 0:00:06]} Kg5 {[%emt 0:00:04]} 50. Bd5 {[%emt 0:00:01]} Kg6 {[%emt 0:00:01]} 51. Nf4+ {[%emt 0:00:02]} Kg5 {[%emt 0:00:05]} 52. Nh3+ {[%emt 0:00:19]} 1-0

[Event "Wuerttemberg Rapid Teams 2024"]
[Site "B?blingen, Germany"]
[Date "2024.04.13"]
[Round "8.13"]
[White "Kottke, Markus"]
[Black "Kabisch, Thilo"]
[Result "0-1"]
[ECO "B20"]
[WhiteElo "2218"]
[BlackElo "2228"]
[Annotator "RC"]
[PlyCount "54"]
[EventDate "2024.04.13"]
[EventType "team-tourn"]
[SourceTitle "playchess.com"]
[Source "ChessBase"]
[SourceQuality "1"]
[TimeControl "900+5"]

1. e4 {[%emt 0:00:03]} e6 {[%emt 0:00:03]} 2. b3 {[%emt 0:00:07]} c5 {[%emt 0:00:06]} 3. Bb2 {[%emt 0:00:05]} Nc6 {[%emt 0:00:02]} 4. Bb5 {[%emt 0:00:28]} Nd4 {[%emt 0:00:35]} 5. Nc3 {[%emt 0:00:11]} Nxb5 {[%emt 0:00:13]} 6. Nxb5 {[%emt 0:00:01]} a6 {[%emt 0:00:03]} 7. Nc3 {[%emt 0:00:02]} Qc7 {[%emt 0:00:05]} 8. d4 {[%emt 0:00:03]} cxd4 {[%emt 0:00:08]} 9. Qxd4 {[%emt 0:00:01]} Nf6 {[%emt 0:00:13]} 10. f3 {[%emt 0:00:56]} Bc5 {[%emt 0:00:06]} 11. Qd3 {[%emt 0:00:01]} b5 {[%emt 0:00:21]} 12. O-O-O {[%emt 0:00:08]} Bb7 {[%emt 0:00:00]} 13. Nge2 {[%emt 0:00:15]} O-O-O {[%emt 0:00:08]} 14. g4 {[%emt 0:00:53]} h6 {[%emt 0:00:04]} 15. h4 {[%emt 0:00:03]} Bc6 {[%emt 0:00:08]} 16. g5 {[%emt 0:00:39]} Nh5 {[%emt 0:00:09]} 17. Kb1 {[%emt 0:00:43]} Qb6 {[%emt 0:00:19]} 18. Ka1 {[%emt 0:01:41]} d5 {[%emt 0:00:56]} 19. exd5 {[%emt 0:00:37]} b4 {[%emt 0:00:10]} 20. Ne4 {[%emt 0:00:46]} Rxd5 {[%emt 0:00:25]} 21. Qc4 {[%emt 0:00:03]} Rhd8 {[%emt 0:01:53]} 22. Rxd5 {[%emt 0:00:01]} Rxd5 {[%emt 0:00:05]} 23. Nxc5 {[%emt 0:01:18]} Rxc5 {[%emt 0:00:06]} 24. Qg4 {[%emt 0:00:02]} Rxc2 {[%emt 0:01:52]} 25. Nd4 {[%emt 0:00:08]} Rxb2 {[%emt 0:00:04]} 26. Rc1 {[%emt 0:01:30]} Rg2 {[%emt 0:01:18]} 27. Qe4 {[%emt 0:01:58]} Rg1 {[%emt 0:00:18]} 0-1

[Event "Wuerttemberg Rapid Teams 2024"]
[Site "B?blingen, Germany"]
[Date "2024.04.13"]
[Round "8.14"]
[White "Trachtmann, Mark"]
[Black "Hofer, Markus"]
[Result "1-0"]
[ECO "D30"]
[WhiteElo "2203"]
[BlackElo "2047"]
[Annotator "RC"]
[PlyCount "39"]
[EventDate "2024.04.13"]
[EventType "team-tourn"]
[SourceTitle "playchess.com"]
[Source "ChessBase"]
[SourceQuality "1"]
[TimeControl "900+5"]

1. d4 {[%emt 0:00:02]} d5 {[%emt 0:00:00]} 2. Nf3 {[%emt 0:00:02]} e6 {[%emt 0:00:03]} 3. c4 {[%emt 0:00:02]} c6 {[%emt 0:00:03]} 4. g3 {[%emt 0:00:04]} dxc4 {[%emt 0:00:57]} 5. Bg2 {[%emt 0:00:03]} b5 {[%emt 0:01:09]} 6. O-O {[%emt 0:00:18]} Bb7 {[%emt 0:00:05]} 7. Ne5 {[%emt 0:00:30]} f6 {[%emt 0:00:41]} 8. Nf3 {[%emt 0:00:05]} Nd7 {[%emt 0:02:24]} 9. b3 {[%emt 0:00:30]} Nb6 {[%emt 0:00:12]} 10. a4 {[%emt 0:01:43]} cxb3 {[%emt 0:01:18]} 11. axb5 {[%emt 0:00:03]} cxb5 {[%emt 0:00:03]} 12. Qxb3 {[%emt 0:00:04]} Qd5 {[%emt 0:00:08]} 13. Qd3 {[%emt 0:00:50]} Qc4 {[%emt 0:00:56]} 14. Qd1 {[%emt 0:00:33]} Bb4 {[%emt 0:02:04]} 15. Na3 {[%emt 0:01:10]} Bxa3 {[%emt 0:01:28]} 16. Bxa3 {[%emt 0:00:01]} Ne7 {[%emt 0:00:26]} 17. Rc1 {[%emt 0:00:14]} Qa4 {[%emt 0:00:03]} 18. Qxa4 {[%emt 0:00:24]} Nxa4 {[%emt 0:01:37]} 19. Rc7 {[%emt 0:00:39]} O-O {[%emt 0:00:43]} 20. Rxb7 {[%emt 0:00:10]} 1-0

[Event "Wuerttemberg Rapid Teams 2024"]
[Site "B?blingen, Germany"]
[Date "2024.04.13"]
[Round "8.16"]
[White "Eisele, Steffen"]
[Black "Brettschneider, Karl"]
[Result "0-1"]
[ECO "B30"]
[WhiteElo "2230"]
[BlackElo "1965"]
[Annotator "RC"]
[PlyCount "77"]
[EventDate "2024.04.13"]
[EventType "team-tourn"]
[SourceTitle "playchess.com"]
[Source "ChessBase"]
[SourceQuality "1"]
[TimeControl "900+5"]

1. e4 {[%emt 0:00:02]} c5 {[%emt 0:00:02]} 2. Nf3 {[%emt 0:00:01]} Nc6 {[%emt 0:00:02]} 3. Bb5 {[%emt 0:00:01]} e6 {[%emt 0:00:05]} 4. Bxc6 {[%emt 0:00:04]} bxc6 {[%emt 0:00:02]} 5. d3 {[%emt 0:00:09]} d5 {[%emt 0:00:28]} 6. Nbd2 {[%emt 0:00:30]} Be7 {[%emt 0:00:21]} 7. b3 {[%emt 0:00:12]} Nf6 {[%emt 0:00:22]} 8. Bb2 {[%emt 0:00:31]} O-O {[%emt 0:00:15]} 9. O-O {[%emt 0:00:13]} a5 {[%emt 0:00:30]} 10. Qe2 {[%emt 0:03:26]} a4 {[%emt 0:00:31]} 11. Rad1 {[%emt 0:00:27]} axb3 {[%emt 0:00:25]} 12. axb3 {[%emt 0:00:02]} Ra2 {[%emt 0:00:29]} 13. Rb1 {[%emt 0:00:13]} Ba6 {[%emt 0:00:22]} 14. Ne5 {[%emt 0:01:43]} Qc7 {[%emt 0:00:48]} 15. f4 {[%emt 0:00:09]} dxe4 {[%emt 0:00:30]} 16. Nxe4 {[%emt 0:00:05]} Nxe4 {[%emt 0:00:28]} 17. Qxe4 {[%emt 0:00:03]} Bb7 {[%emt 0:00:35]} 18. Nc4 {[%emt 0:01:32]} Rfa8 {[%emt 0:01:08]} 19. Rfe1 {[%emt 0:00:20]} Bd6 {[%emt 0:01:02]} 20. g3 {[%emt 0:00:49]} Ba6 {[%emt 0:00:52]} 21. h4 {[%emt 0:00:35]} Bxc4 {[%emt 0:00:10]} 22. Qxc4 {[%emt 0:00:04]} Be7 {[%emt 0:00:18]} 23. Kg2 {[%emt 0:00:36]} Qd6 {[%emt 0:00:18]} 24. Kh3 {[%emt 0:01:00]} Re8 {[%emt 0:00:44]} 25. Qe4 {[%emt 0:01:10]} Qd7 {[%emt 0:00:53]} 26. Kg2 {[%emt 0:00:58]} Qd5 {[%emt 0:00:21]} 27. h5 {[%emt 0:00:24]} Qxh5 {[%emt 0:00:57]} 28. Qxc6 {[%emt 0:00:24]} Qd5+ {[%emt 0:00:23]} 29. Qxd5 {[%emt 0:00:11]} exd5 {[%emt 0:00:01]} 30. Re2 {[%emt 0:00:23]} f6 {[%emt 0:00:26]} 31. c4 {[%emt 0:00:09]} d4 {[%emt 0:00:25]} 32. Rbe1 {[%emt 0:00:06]} Kf7 {[%emt 0:00:05]} 33. Kf3 {[%emt 0:00:26]} g6 {[%emt 0:00:27]} 34. g4 {[%emt 0:00:13]} Raa8 {[%emt 0:00:13]} 35. b4 {[%emt 0:00:14]} cxb4 {[%emt 0:01:37]} 36. Rh1 {[%emt 0:00:02]} Rh8 {[%emt 0:00:08]} 37. g5 {[%emt 0:00:06]} Bc5 {[%emt 0:00:13]} 38. Reh2 {[%emt 0:00:22]} fxg5 {[%emt 0:00:11]} 39. Rh3 {[%emt 0:00:25]} 0-1

[Event "Wuerttemberg Rapid Teams 2024"]
[Site "B?blingen, Germany"]
[Date "2024.04.13"]
[Round "8.17"]
[White "Gabriel, Robert"]
[Black "Oberst, Thomas"]
[Result "1-0"]
[ECO "D85"]
[WhiteElo "2161"]
[BlackElo "2227"]
[Annotator "RC"]
[PlyCount "90"]
[EventDate "2024.04.13"]
[EventType "team-tourn"]
[SourceTitle "playchess.com"]
[Source "ChessBase"]
[SourceQuality "1"]
[TimeControl "900+5"]

1. d4 {[%emt 0:00:02]} Nf6 {[%emt 0:00:01]} 2. Nf3 {[%emt 0:00:03]} g6 {[%emt 0:00:01]} 3. c4 {[%emt 0:00:03]} Bg7 {[%emt 0:00:01]} 4. Nc3 {[%emt 0:00:03]} d5 {[%emt 0:00:01]} 5. cxd5 {[%emt 0:00:11]} Nxd5 {[%emt 0:00:01]} 6. e4 {[%emt 0:00:04]} Nxc3 {[%emt 0:00:02]} 7. bxc3 {[%emt 0:00:03]} c5 {[%emt 0:00:06]} 8. Bb5+ {[%emt 0:00:09]} Bd7 {[%emt 0:00:29]} 9. Bxd7+ {[%emt 0:00:14]} Nxd7 {[%emt 0:00:08]} 10. O-O {[%emt 0:00:11]} O-O {[%emt 0:00:08]} 11. Rb1 {[%emt 0:00:13]} b6 {[%emt 0:00:09]} 12. Be3 {[%emt 0:00:19]} cxd4 {[%emt 0:00:10]} 13. cxd4 {[%emt 0:00:05]} Nf6 {[%emt 0:00:07]} 14. Nd2 {[%emt 0:00:22]} Qd7 {[%emt 0:00:14]} 15. h3 {[%emt 0:00:08]} Rac8 {[%emt 0:00:21]} 16. Qb3 {[%emt 0:00:13]} e6 {[%emt 0:00:53]} 17. Rfc1 {[%emt 0:00:10]} h6 {[%emt 0:00:45]} 18. a4 {[%emt 0:00:23]} g5 {[%emt 0:00:33]} 19. f3 {[%emt 0:00:17]} Nh5 {[%emt 0:00:13]} 20. e5 {[%emt 0:00:09]} Nf4 {[%emt 0:00:09]} 21. Bxf4 {[%emt 0:00:07]} gxf4 {[%emt 0:00:03]} 22. Qb4 {[%emt 0:00:42]} Rxc1+ {[%emt 0:00:45]} 23. Rxc1 {[%emt 0:00:02]} Rd8 {[%emt 0:00:01]} 24. Nb3 {[%emt 0:00:13]} Rc8 {[%emt 0:01:04]} 25. Rc4 {[%emt 0:01:34]} Rxc4 {[%emt 0:01:44]} 26. Qxc4 {[%emt 0:00:03]} Qd5 {[%emt 0:00:12]} 27. Qxd5 {[%emt 0:00:16]} exd5 {[%emt 0:00:01]} 28. Nc1 {[%emt 0:00:13]} f6 {[%emt 0:01:21]} 29. Nd3 {[%emt 0:00:04]} fxe5 {[%emt 0:00:05]} 30. dxe5 {[%emt 0:00:04]} d4 {[%emt 0:00:20]} 31. e6 {[%emt 0:00:17]} a6 {[%emt 0:00:05]} 32. Kf1 {[%emt 0:00:08]} b5 {[%emt 0:00:02]} 33. axb5 {[%emt 0:00:18]} axb5 {[%emt 0:00:01]} 34. Nxf4 {[%emt 0:00:04]} b4 {[%emt 0:00:24]} 35. Ke2 {[%emt 0:00:39]} b3 {[%emt 0:00:07]} 36. Nd3 {[%emt 0:00:28]} Kf8 {[%emt 0:00:06]} 37. f4 {[%emt 0:00:06]} Ke7 {[%emt 0:00:08]} 38. f5 {[%emt 0:00:05]} h5 {[%emt 0:00:15]} 39. g4 {[%emt 0:00:09]} hxg4 {[%emt 0:00:06]} 40. hxg4 {[%emt 0:00:02]} Bh6 {[%emt 0:00:01]} 41. Kd1 {[%emt 0:01:38]} Bg5 {[%emt 0:00:02]} 42. Nc5 {[%emt 0:00:34]} b2 {[%emt 0:00:42]} 43. Kc2 {[%emt 0:00:03]} Kd6 {[%emt 0:00:37]} 44. Ne4+ {[%emt 0:00:18]} Ke5 {[%emt 0:00:15]} 45. Nxg5 {[%emt 0:00:04]} Kd6 {[%emt 0:00:10]} 1-0

[Event "Wuerttemberg Rapid Teams 2024"]
[Site "B?blingen, Germany"]
[Date "2024.04.13"]
[Round "8.18"]
[White "Namyslo, Holger"]
[Black "Gabriel, Josef"]
[Result "0-1"]
[ECO "B06"]
[WhiteElo "2125"]
[BlackElo "1997"]
[Annotator "RC"]
[PlyCount "112"]
[EventDate "2024.04.13"]
[EventType "team-tourn"]
[SourceTitle "playchess.com"]
[Source "ChessBase"]
[SourceQuality "1"]
[TimeControl "900+5"]

1. e4 {[%emt 0:00:01]} g6 {[%emt 0:00:01]} 2. d4 {[%emt 0:00:03]} d6 {[%emt 0:00:00]} 3. Nf3 {[%emt 0:00:07]} Bg7 {[%emt 0:00:03]} 4. Bc4 {[%emt 0:00:03]} e6 {[%emt 0:00:01]} 5. Qe2 {[%emt 0:00:11]} a6 {[%emt 0:00:02]} 6. c3 {[%emt 0:00:17]} Ne7 {[%emt 0:00:18]} 7. Bb3 {[%emt 0:00:10]} Nd7 {[%emt 0:00:13]} 8. O-O {[%emt 0:00:04]} O-O {[%emt 0:00:01]} 9. Re1 {[%emt 0:00:02]} c5 {[%emt 0:00:13]} 10. Nbd2 {[%emt 0:00:14]} b5 {[%emt 0:00:27]} 11. Nf1 {[%emt 0:00:07]} Bb7 {[%emt 0:00:10]} 12. Ng3 {[%emt 0:00:08]} Rc8 {[%emt 0:00:57]} 13. h4 {[%emt 0:00:07]} Qb6 {[%emt 0:00:49]} 14. Be3 {[%emt 0:00:29]} Nf6 {[%emt 0:00:07]} 15. Bg5 {[%emt 0:00:44]} h6 {[%emt 0:00:02]} 16. Bf4 {[%emt 0:01:31]} Ng4 {[%emt 0:00:13]} 17. Rad1 {[%emt 0:00:31]} cxd4 {[%emt 0:01:17]} 18. cxd4 {[%emt 0:00:11]} e5 {[%emt 0:00:13]} 19. dxe5 {[%emt 0:00:05]} dxe5 {[%emt 0:00:01]} 20. Bc1 {[%emt 0:00:32]} Rfd8 {[%emt 0:02:14]} 21. h5 {[%emt 0:00:11]} Rxd1 {[%emt 0:01:34]} 22. Rxd1 {[%emt 0:00:05]} gxh5 {[%emt 0:02:18]} 23. Nxh5 {[%emt 0:00:37]} Bxe4 {[%emt 0:00:06]} 24. Nxg7 {[%emt 0:01:04]} Kxg7 {[%emt 0:00:10]} 25. Nxe5 {[%emt 0:00:48]} Nxe5 {[%emt 0:00:34]} 26. Qxe4 {[%emt 0:00:11]} N7g6 {[%emt 0:00:26]} 27. Qf5 {[%emt 0:01:13]} Rd8 {[%emt 0:00:23]} 28. Rxd8 {[%emt 0:01:03]} Qxd8 {[%emt 0:00:05]} 29. Qh3 {[%emt 0:00:18]} Nh4 {[%emt 0:00:31]} 30. Qg3+ {[%emt 0:02:04]} Neg6 {[%emt 0:01:04]} 31. Qe3 {[%emt 0:01:44]} Nf5 {[%emt 0:00:27]} 32. Qd2 {[%emt 0:00:01]} Qc7 {[%emt 0:00:28]} 33. Qc3+ {[%emt 0:01:06]} Qxc3 {[%emt 0:00:38]} 34. bxc3 {[%emt 0:00:01]} Nd6 {[%emt 0:00:11]} 35. a4 {[%emt 0:00:15]} Nc4 {[%emt 0:00:15]} 36. Kf1 {[%emt 0:00:21]} Nge5 {[%emt 0:00:00]} 37. Ke2 {[%emt 0:00:02]} h5 {[%emt 0:00:20]} 38. Be3 {[%emt 0:00:07]} Kf6 {[%emt 0:00:46]} 39. Bd4 {[%emt 0:00:02]} Ke6 {[%emt 0:00:01]} 40. axb5 {[%emt 0:00:12]} axb5 {[%emt 0:00:01]} 41. Bxe5 {[%emt 0:00:58]} Kxe5 {[%emt 0:00:04]} 42. Kd3 {[%emt 0:00:11]} Kd5 {[%emt 0:00:01]} 43. Bxc4+ {[%emt 0:00:05]} bxc4+ {[%emt 0:00:03]} 44. Ke3 {[%emt 0:00:00]} Ke5 {[%emt 0:00:03]} 45. Kf3 {[%emt 0:00:02]} Kf5 {[%emt 0:00:03]} 46. Kg3 {[%emt 0:00:01]} Kg5 {[%emt 0:00:03]} 47. f4+ {[%emt 0:00:14]} Kf5 {[%emt 0:00:03]} 48. Kf3 {[%emt 0:00:00]} h4 {[%emt 0:00:04]} 49. g4+ {[%emt 0:00:13]} hxg3 {[%emt 0:00:01]} 50. Kxg3 {[%emt 0:00:01]} Ke4 {[%emt 0:00:00]} 51. Kg4 {[%emt 0:00:01]} Kd3 {[%emt 0:00:01]} 52. Kf5 {[%emt 0:00:01]} Kxc3 {[%emt 0:00:01]} 53. Kf6 {[%emt 0:00:00]} Kd3 {[%emt 0:00:08]} 54. f5 {[%emt 0:00:01]} c3 {[%emt 0:00:00]} 55. Kxf7 {[%emt 0:00:02]} c2 {[%emt 0:00:00]} 56. f6 {[%emt 0:00:00]} c1=Q {[%emt 0:00:02]} 0-1

[Event "Wuerttemberg Rapid Teams 2024"]
[Site "B?blingen, Germany"]
[Date "2024.04.13"]
[Round "8.19"]
[White "Aksenov, Pavel"]
[Black "Schulze, Andreas"]
[Result "0-1"]
[ECO "B03"]
[WhiteElo "2045"]
[BlackElo "2080"]
[Annotator "RC"]
[PlyCount "64"]
[EventDate "2024.04.13"]
[EventType "team-tourn"]
[SourceTitle "playchess.com"]
[Source "ChessBase"]
[SourceQuality "1"]
[TimeControl "900+5"]

1. e4 {[%emt 0:00:07]} Nf6 {[%emt 0:00:52]} 2. e5 {[%emt 0:00:06]} Nd5 {[%emt 0:00:01]} 3. Bc4 {[%emt 0:00:07]} e6 {[%emt 0:00:15]} 4. d4 {[%emt 0:00:34]} d6 {[%emt 0:00:04]} 5. Nf3 {[%emt 0:00:22]} Nc6 {[%emt 0:00:07]} 6. O-O {[%emt 0:00:41]} dxe5 {[%emt 0:00:02]} 7. Nxe5 {[%emt 0:00:39]} Nxe5 {[%emt 0:00:31]} 8. dxe5 {[%emt 0:00:03]} Nb6 {[%emt 0:00:18]} 9. Qxd8+ {[%emt 0:00:44]} Kxd8 {[%emt 0:00:01]} 10. Rd1+ {[%emt 0:01:23]} Bd7 {[%emt 0:00:02]} 11. Be2 {[%emt 0:00:31]} c6 {[%emt 0:00:11]} 12. a4 {[%emt 0:00:59]} Kc7 {[%emt 0:00:18]} 13. a5 {[%emt 0:01:16]} Nd5 {[%emt 0:00:07]} 14. c4 {[%emt 0:00:41]} Nb4 {[%emt 0:00:02]} 15. Rd2 {[%emt 0:01:37]} Be7 {[%emt 0:00:12]} 16. Nc3 {[%emt 0:00:24]} Rad8 {[%emt 0:00:09]} 17. Ne4 {[%emt 0:00:29]} Bc8 {[%emt 0:00:28]} 18. b3 {[%emt 0:00:57]} Rxd2 {[%emt 0:00:23]} 19. Bxd2 {[%emt 0:00:05]} Nc2 {[%emt 0:00:05]} 20. Ra2 {[%emt 0:01:09]} Nd4 {[%emt 0:00:07]} 21. Bd1 {[%emt 0:00:13]} Rd8 {[%emt 0:00:02]} 22. Kf1 {[%emt 0:00:08]} f6 {[%emt 0:00:34]} 23. exf6 {[%emt 0:00:21]} gxf6 {[%emt 0:00:02]} 24. Bc3 {[%emt 0:00:29]} e5 {[%emt 0:00:09]} 25. Rd2 {[%emt 0:00:47]} Bf5 {[%emt 0:00:08]} 26. Ng3 {[%emt 0:00:09]} Bg6 {[%emt 0:00:02]} 27. h4 {[%emt 0:00:05]} h6 {[%emt 0:00:07]} 28. h5 {[%emt 0:01:46]} Bh7 {[%emt 0:00:04]} 29. Bxd4 {[%emt 0:00:07]} exd4 {[%emt 0:00:02]} 30. Bg4 {[%emt 0:00:11]} Bb4 {[%emt 0:00:07]} 31. Rd1 {[%emt 0:00:33]} Bc2 {[%emt 0:00:01]} 32. Rc1 {[%emt 0:00:01]} d3 0-1

[Event "Wuerttemberg Rapid Teams 2024"]
[Site "B?blingen, Germany"]
[Date "2024.04.13"]
[Round "8.20"]
[White "Birkenmaier, Rainer"]
[Black "Siegle, Florian"]
[Result "1-0"]
[ECO "D05"]
[WhiteElo "2111"]
[BlackElo "1912"]
[Annotator "RC"]
[PlyCount "75"]
[EventDate "2024.04.13"]
[EventType "team-tourn"]
[SourceTitle "playchess.com"]
[Source "ChessBase"]
[SourceQuality "1"]
[TimeControl "900+5"]

1. d4 {[%emt 0:00:53]} Nf6 {[%emt 0:00:06]} 2. Nf3 {[%emt 0:00:01]} e6 {[%emt 0:00:05]} 3. Nbd2 {[%emt 0:00:02]} d5 {[%emt 0:00:04]} 4. e3 {[%emt 0:00:01]} Be7 {[%emt 0:00:09]} 5. Bd3 {[%emt 0:00:02]} b6 {[%emt 0:00:44]} 6. c3 {[%emt 0:00:05]} Bb7 {[%emt 0:00:02]} 7. Ne5 {[%emt 0:00:14]} Nfd7 {[%emt 0:00:12]} 8. f4 {[%emt 0:00:06]} Nf6 {[%emt 0:01:46]} 9. Qf3 {[%emt 0:00:06]} Bd6 {[%emt 0:01:09]} 10. O-O {[%emt 0:00:08]} Qe7 {[%emt 0:00:09]} 11. e4 {[%emt 0:00:16]} Nbd7 {[%emt 0:00:25]} 12. Nxd7 {[%emt 0:00:08]} Nxe4 {[%emt 0:00:46]} 13. Nxe4 {[%emt 0:00:32]} dxe4 {[%emt 0:00:06]} 14. Bxe4 {[%emt 0:00:02]} Bxe4 {[%emt 0:00:01]} 15. Qxe4 {[%emt 0:00:01]} Kxd7 {[%emt 0:00:02]} 16. Bd2 {[%emt 0:00:32]} c6 {[%emt 0:00:07]} 17. Rae1 {[%emt 0:00:05]} Rae8 {[%emt 0:00:42]} 18. f5 {[%emt 0:00:12]} e5 {[%emt 0:01:06]} 19. d5 {[%emt 0:01:12]} f6 {[%emt 0:00:37]} 20. dxc6+ {[%emt 0:00:12]} Kc7 {[%emt 0:00:02]} 21. b4 {[%emt 0:00:05]} a5 {[%emt 0:00:36]} 22. bxa5 {[%emt 0:00:31]} Bc5+ {[%emt 0:00:06]} 23. Kh1 {[%emt 0:02:06]} Ra8 {[%emt 0:01:10]} 24. axb6+ {[%emt 0:00:46]} Bxb6 {[%emt 0:00:02]} 25. Rb1 {[%emt 0:00:17]} Qc5 {[%emt 0:00:32]} 26. Qg4 {[%emt 0:00:37]} Rhg8 {[%emt 0:00:45]} 27. Qh5 {[%emt 0:00:16]} Qe7 {[%emt 0:01:22]} 28. Be3 {[%emt 0:01:02]} Rab8 {[%emt 0:00:26]} 29. Bxb6+ {[%emt 0:01:05]} Rxb6 {[%emt 0:00:05]} 30. Rxb6 {[%emt 0:00:09]} Kxb6 {[%emt 0:00:03]} 31. Rb1+ {[%emt 0:00:19]} Kxc6 {[%emt 0:00:33]} 32. Qe2 {[%emt 0:00:24]} Rd8 {[%emt 0:01:53]} 33. Qb5+ {[%emt 0:01:17]} Kd6 {[%emt 0:00:23]} 34. Rd1+ {[%emt 0:00:55]} Kc7 {[%emt 0:00:07]} 35. Qa5+ {[%emt 0:00:34]} Kc8 {[%emt 0:00:03]} 36. Qa6+ {[%emt 0:00:43]} Kc7 {[%emt 0:00:22]} 37. Rb1 {[%emt 0:00:23]} Rb8 {[%emt 0:00:46]} 38. Qa7+ {[%emt 0:00:09]} 1-0